bitfinex/quotes_BTCUSD_20250115
["timestamp","ask_amount","ask_price","bid_price","bid_amount"]
[1736923103562,0.00228805,97031.0,97030.0,0.289621]
[1736923106564,0.01844339,97031.0,97030.0,0.289621]
[1736923106758,0.01844339,97031.0,97030.0,0.439621]
[1736923106966,0.01844339,97031.0,97030.0,0.54384792]
[1736923107323,0.01844339,97031.0,97030.0,0.54952792]
[1736923107742,0.01844339,97031.0,97030.0,0.54552792]
[1736923107936,0.01844339,97031.0,97030.0,0.54452792]
[1736923108141,0.01844339,97031.0,97030.0,0.54552792]
[1736923108680,0.01844339,97031.0,97030.0,0.55052792]
[1736923109085,0.01844339,97031.0,97030.0,0.54552792]
[1736923109283,0.01844339,97031.0,97030.0,0.59262792]
[1736923109586,0.00228805,97031.0,97030.0,0.59162792]
[1736923109733,0.00228805,97031.0,97030.0,0.60362792]
[1736923110333,0.00228805,97031.0,97030.0,0.60062792]
[1736923110884,0.00228805,97031.0,97030.0,0.60362792]
[1736923111524,0.00228805,97031.0,97030.0,0.59462792]
[1736923111696,0.00228805,97031.0,97030.0,0.60362792]
[1736923118397,0.00228805,97031.0,97030.0,0.61978292]
[1736923129817,0.00228805,97031.0,97030.0,0.61410292]
[1736923130023,0.00228805,97031.0,97030.0,0.60362792]
[1736923131448,0.00228805,97031.0,97030.0,0.55084792]
[1736923131677,0.00228805,97031.0,97030.0,0.55652792]
[1736923137755,0.00228805,97031.0,97030.0,0.368121]
[1736923137902,0.00228805,97031.0,97030.0,0.373801]
[1736923138262,0.00228805,97031.0,97030.0,0.47802792]
[1736923138462,0.00228805,97031.0,97030.0,0.55932792]
[1736923138666,0.00228805,97031.0,97030.0,0.59154536]
[1736923146623,0.00228805,97031.0,97030.0,0.6840017]
[1736923147605,0.00228805,97031.0,97030.0,0.61454536]
[1736923148683,0.00228805,97031.0,97030.0,0.75322987]
[1736923149986,0.00228805,97031.0,97030.0,0.93236331]
[1736923152115,0.00228805,97031.0,97030.0,1.11727599]
[1736923152353,0.00228805,97031.0,97030.0,1.08505855]
[1736923153333,0.00228805,97031.0,97030.0,1.11729022]
[1736923153894,0.00228805,97031.0,97030.0,1.08505855]
[1736923154097,0.00228805,97031.0,97030.0,1.39423855]
[1736923155883,0.00228805,97031.0,97030.0,1.03074934]
[1736923158136,0.00228805,97031.0,97030.0,1.34911666]
[1736923158953,0.00228805,97031.0,97030.0,1.26781666]
[1736923161458,0.00228805,97031.0,97030.0,0.94944934]
[1736923162862,0.00228805,97031.0,97030.0,0.81020792]
[1736923163869,0.00228805,97031.0,97030.0,0.94944934]
[1736923165345,0.00228805,97031.0,97030.0,1.12855683]
[1736923168739,0.00228805,97031.0,97030.0,1.16079119]
[1736923169028,0.00228805,97031.0,97030.0,1.12855683]
[1736923172036,0.00228805,97031.0,97030.0,1.16079312]
[1736923172769,0.00228805,97031.0,97030.0,1.24319312]
[1736923172984,0.00228805,97031.0,97030.0,0.32086375]
[1736923173571,0.00228805,97031.0,97030.0,0.63004375]
[1736923173776,0.00228805,97031.0,97030.0,0.83616475]
[1736923174764,0.00228805,97031.0,97030.0,0.70760792]
[1736923174964,0.00228805,97031.0,97030.0,0.85760792]
[1736923175182,0.00228805,97031.0,97030.0,0.85846152]
[1736923180330,0.01498555,97050.0,97049.0,0.206081]
[1736923180553,0.00010203,97050.0,97049.0,0.206081]
[1736923182975,0.00010203,97050.0,97049.0,0.208081]
[1736923185697,0.00010203,97050.0,97049.0,0.206081]
[1736923185899,0.00010203,97050.0,97049.0,0.207081]
[1736923186812,0.00010203,97050.0,97049.0,0.206081]
[1736923187126,0.00010203,97050.0,97049.0,0.21765136]
[1736923188660,0.0018946,97050.0,97049.0,0.21665136]
[1736923189061,0.0018946,97050.0,97049.0,0.21765136]
[1736923190622,0.0018946,97050.0,97049.0,0.21715136]
[1736923190951,0.01804808,97050.0,97049.0,0.21715136]
[1736923192749,0.01804808,97050.0,97049.0,0.21615136]
[1736923194351,0.01804808,97050.0,97049.0,0.32037828]
[1736923194352,0.0018946,97050.0,97049.0,0.32037828]
[1736923194557,0.0018946,97050.0,97049.0,0.39617828]
[1736923194970,0.0018946,97050.0,97049.0,0.70529828]
[1736923195378,0.0018946,97050.0,97049.0,0.85529828]
[1736923196060,0.0018946,97050.0,97049.0,0.85629828]
[1736923196254,0.0028946,97050.0,97049.0,0.86229828]
[1736923196483,0.0018946,97050.0,97049.0,0.85529828]
[1736923196856,0.0028946,97050.0,97049.0,0.86629828]
[1736923197267,0.0028946,97050.0,97049.0,0.8868928]
[1736923197475,0.0028946,97050.0,97049.0,0.8838928]
[1736923198320,0.0018946,97050.0,97049.0,0.8758928]
[1736923198717,0.0028946,97050.0,97049.0,0.8838928]
[1736923198929,0.0028946,97050.0,97049.0,0.8868928]
[1736923199313,0.0028946,97050.0,97049.0,0.8838928]
[1736923199522,0.0028946,97050.0,97049.0,1.32060725]
[1736923199953,0.0028946,97050.0,97049.0,1.32146065]
[1736923202208,0.00277059,97050.0,97049.0,1.32146065]
[1736923224233,0.00277059,97050.0,97049.0,1.1606462]
[1736923224816,0.00277059,97050.0,97049.0,1.24566065]
[1736923227184,0.00277059,97050.0,97049.0,1.1606462]
[1736923227387,0.00277059,97050.0,97049.0,1.1376462]
[1736923227647,0.00277059,97050.0,97049.0,1.03909928]
[1736923227814,0.00277059,97050.0,97049.0,1.03341928]
[1736923229779,0.00277059,97050.0,97049.0,0.70771928]
[1736923232212,0.00177059,97050.0,97049.0,0.69671928]
[1736923232721,0.00177059,97050.0,97049.0,0.69971928]
[1736923232941,0.00277059,97050.0,97049.0,0.70771928]
[1736923236600,0.00277059,97050.0,97049.0,0.73994648]
[1736923237005,0.00277059,97050.0,97049.0,0.9494734]
[1736923238102,0.00277059,97050.0,97049.0,1.04230482]
[1736923239645,0.00277059,97050.0,97049.0,0.9494734]
[1736923240625,0.00277059,97050.0,97049.0,0.7994734]
[1736923241113,0.00277059,97050.0,97049.0,1.39035713]
[1736923241405,0.00277059,97050.0,97049.0,1.71605713]
[1736923242232,0.00277059,97050.0,97049.0,1.80795085]
[1736923244113,0.00277059,97050.0,97049.0,1.65795085]
[1736923244532,0.00277059,97050.0,97049.0,1.80795085]
[1736923244734,0.00277059,97050.0,97049.0,1.57681]
[1736923245959,0.00277059,97050.0,97049.0,1.66182445]
[1736923247261,0.00277059,97050.0,97049.0,1.89377545]
[1736923248762,0.00277059,97050.0,97049.0,1.63882445]
[1736923254760,0.0754,97072.0,97051.0,0.3257]
[1736923254975,0.00179277,97075.0,97065.0,0.15]
[1736923255181,0.00179277,97075.0,97074.0,0.356028]
[1736923255381,0.00179277,97075.0,97074.0,0.46593492]
[1736923255582,0.00179277,97075.0,97074.0,0.77497492]
[1736923256266,0.00179277,97075.0,97074.0,1.07661152]
[1736923256463,0.00279277,97075.0,97074.0,1.08261152]
[1736923257828,0.00279277,97075.0,97074.0,0.78097492]
[1736923258207,0.00179277,97075.0,97074.0,0.77497492]
[1736923258588,0.00179277,97075.0,97074.0,0.78297492]
[1736923258789,0.00179277,97075.0,97074.0,0.77497492]
[1736923259228,0.00179277,97075.0,97074.0,0.77529492]
[1736923259433,0.00179277,97075.0,97074.0,0.77955087]
[1736923259638,0.00179277,97075.0,97074.0,0.78155087]
[1736923259788,0.00179277,97075.0,97074.0,0.68532395]
[1736923259992,0.08279277,97075.0,97074.0,0.67732395]
[1736923260610,0.08279277,97075.0,97074.0,0.52732395]
[1736923260815,0.14507832,97075.0,97074.0,0.31104]
[1736923261359,0.14507832,97075.0,97074.0,0.31404]
[1736923261563,0.14507832,97075.0,97074.0,0.31604]
[1736923261714,0.14507832,97075.0,97074.0,0.31104]
[1736923261915,0.14507832,97075.0,97074.0,0.31004]
[1736923262723,0.14507832,97075.0,97074.0,0.31104]
[1736923263326,0.14507832,97075.0,97074.0,0.31004]
[1736923264383,0.14507832,97075.0,97074.0,0.30904]
[1736923264581,0.13209277,97075.0,97074.0,0.30904]
[1736923264800,0.13409277,97075.0,97074.0,0.30904]
[1736923265344,0.13209277,97075.0,97074.0,0.30904]
[1736923265665,0.13109277,97075.0,97074.0,0.30904]
[1736923265895,0.13309277,97075.0,97074.0,0.30904]
[1736923266114,0.13109277,97075.0,97074.0,0.30904]
[1736923266301,0.14624267,97075.0,97074.0,0.30904]
[1736923266502,0.14724267,97075.0,97074.0,0.30904]
[1736923267110,0.01894267,97075.0,97074.0,0.41326692]
[1736923267687,0.01794267,97075.0,97074.0,0.41326692]
[1736923268593,0.01794267,97075.0,97074.0,0.41926692]
[1736923270354,0.00179277,97075.0,97074.0,0.41926692]
[1736923270876,0.00179277,97075.0,97074.0,0.42126692]
[1736923271237,0.00179277,97075.0,97074.0,0.44177492]
[1736923272341,0.00179277,97075.0,97074.0,0.59177492]
[1736923273813,0.00179277,97075.0,97074.0,0.58977492]
[1736923274025,0.01794045,97075.0,97074.0,0.59277492]
[1736923274221,0.01794045,97075.0,97074.0,0.58677492]
[1736923274600,0.01794045,97075.0,97074.0,0.59577492]
[1736923274767,0.01794045,97075.0,97074.0,0.59277492]
[1736923274982,0.01794045,97075.0,97074.0,0.58377492]
[1736923275175,0.01794045,97075.0,97074.0,0.59177492]
[1736923275698,0.01794045,97075.0,97074.0,0.58577492]
[1736923275897,0.01794045,97075.0,97074.0,0.59477492]
[1736923276056,0.01794045,97075.0,97074.0,0.58577492]
[1736923276905,0.01794045,97075.0,97074.0,0.58377492]
[1736923277285,0.01794045,97075.0,97074.0,0.58677492]
[1736923277459,0.01794045,97075.0,97074.0,0.59277492]
[1736923277666,0.01794045,97075.0,97074.0,0.67178937]
[1736923278208,0.01794045,97075.0,97074.0,0.68078937]
[1736923278728,0.01794045,97075.0,97074.0,0.70378937]
[1736923278886,0.01794045,97075.0,97074.0,0.59577492]
[1736923279839,0.01794045,97075.0,97074.0,0.59277492]
[1736923280736,0.01794045,97075.0,97074.0,0.60261492]
[1736923280915,0.01794045,97075.0,97074.0,0.59361492]
[1736923281239,0.01794045,97075.0,97074.0,0.59861492]
[1736923281553,0.01794045,97075.0,97074.0,0.59361492]
[1736923282172,0.01794045,97075.0,97074.0,0.60261492]
[1736923282841,0.01794045,97075.0,97074.0,0.59861492]
[1736923283025,0.01794045,97075.0,97074.0,0.92431492]
[1736923283237,0.00179277,97075.0,97074.0,0.92831492]
[1736923287028,0.00179277,97075.0,97074.0,0.92431492]
[1736923287458,0.01793961,97075.0,97074.0,0.92831492]
[1736923287859,0.01793961,97075.0,97074.0,0.92431492]
[1736923288389,0.01793961,97075.0,97074.0,0.92831492]
[1736923288610,0.01793961,97075.0,97074.0,0.91931492]
[1736923288953,0.00179299,97093.0,97075.0,0.974104]
[1736923289200,0.0019417,97093.0,97084.0,0.15]
[1736923289409,0.0019417,97093.0,97092.0,0.20599]
[1736923289619,0.0019417,97093.0,97092.0,0.31021692]
[1736923290990,0.0019417,97093.0,97092.0,0.31221692]
[1736923291635,0.0019417,97093.0,97092.0,0.47245039]
[1736923292404,0.0019417,97093.0,97092.0,0.47645039]
[1736923292603,0.01808782,97093.0,97092.0,0.47245039]
[1736923292799,0.01808782,97093.0,97092.0,0.47045039]
[1736923293029,0.0019417,97093.0,97092.0,0.47045039]
[1736923293245,0.0019417,97093.0,97092.0,0.47845039]
[1736923293600,0.0019417,97093.0,97092.0,0.47245039]
[1736923294156,0.0019417,97093.0,97092.0,0.47545039]
[1736923294949,0.0019417,97093.0,97092.0,0.47745039]
[1736923295353,0.0019417,97093.0,97092.0,0.47245039]
[1736923295561,0.0019417,97093.0,97092.0,0.47745039]
[1736923295958,0.0019417,97093.0,97092.0,0.47245039]
[1736923296166,0.0019417,97093.0,97092.0,0.47745039]
[1736923296373,0.0019417,97093.0,97092.0,0.78144039]
[1736923296619,0.0019417,97093.0,97092.0,0.77944039]
[1736923297587,0.01808775,97093.0,97092.0,0.78544039]
[1736923297753,0.01808775,97093.0,97092.0,0.78744039]
[1736923298421,0.01808775,97093.0,97092.0,0.68121347]
[1736923298628,0.01808775,97093.0,97092.0,0.68321347]
[1736923298939,0.01808775,97093.0,97092.0,0.67721347]
[1736923299138,0.01808775,97093.0,97092.0,0.68321347]
[1736923299505,0.01808775,97093.0,97092.0,0.67721347]
[1736923299702,0.01808775,97093.0,97092.0,0.68221347]
[1736923299901,0.01808775,97093.0,97092.0,0.68021347]
[1736923300326,0.01808775,97093.0,97092.0,0.68221347]
[1736923303162,0.0019417,97093.0,97092.0,0.68221347]
[1736923307713,0.0180879,97093.0,97092.0,0.68221347]
[1736923313336,0.0019417,97093.0,97092.0,0.68221347]
[1736923317612,0.01808806,97093.0,97092.0,0.68221347]
[1736923328831,0.0019417,97093.0,97092.0,0.68221347]
[1736923329030,0.00181772,97093.0,97092.0,0.68221347]
[1736923333485,0.00181772,97093.0,97092.0,0.78644039]
[1736923334555,0.00181772,97093.0,97092.0,0.78144039]
[1736923335141,0.00181772,97093.0,97092.0,0.78944039]
[1736923336104,0.00181772,97093.0,97092.0,0.78744039]
[1736923336580,0.00181772,97093.0,97092.0,0.79044039]
[1736923345044,0.00181772,97093.0,97092.0,0.82264864]
[1736923346115,0.00181772,97093.0,97092.0,0.79044039]
[1736923346480,0.00181772,97093.0,97092.0,0.88320051]
[1736923347413,0.00181772,97093.0,97092.0,0.79044039]
[1736923347775,0.00181772,97093.0,97092.0,0.77944039]
[1736923348013,0.00181772,97093.0,97092.0,0.78744039]
[1736923348223,0.00181772,97093.0,97092.0,0.81964365]
[1736923348431,0.00181772,97093.0,97092.0,0.82264365]
[1736923350111,0.00181772,97093.0,97092.0,0.82443621]
[1736923351394,0.00181772,97093.0,97092.0,0.91716371]
[1736923351568,0.00181772,97093.0,97092.0,0.88496045]
[1736923353563,0.00181772,97093.0,97092.0,0.88056045]
[1736923354810,0.00181772,97093.0,97092.0,0.78783295]
[1736923358706,0.00181772,97093.0,97092.0,0.88056045]
[1736923363664,0.00181772,97093.0,97092.0,0.91851611]
[1736923364915,0.00181772,97093.0,97092.0,0.82578861]
[1736923366617,0.00181772,97093.0,97092.0,1.08842806]
[1736923366938,7.2e-07,97093.0,97092.0,2.63342806]
[1736923367141,7.2e-07,97093.0,97092.0,2.53140306]
[1736923367891,7.2e-07,97093.0,97092.0,2.52340306]
[1736923368108,7.2e-07,97093.0,97092.0,2.53240306]
[1736923368301,7.2e-07,97093.0,97092.0,2.81371128]
[1736923369268,7.2e-07,97093.0,97092.0,2.81071128]
[1736923370071,7.2e-07,97093.0,97092.0,3.13841128]
[1736923370431,7.2e-07,97093.0,97092.0,3.13641128]
[1736923372391,7.2e-07,97093.0,97092.0,3.14041128]
[1736923373126,7.2e-07,97093.0,97092.0,3.14011128]
[1736923373463,0.00085432,97093.0,97092.0,3.14011128]
[1736923373664,0.00085432,97093.0,97092.0,3.85485328]
[1736923374602,0.00085432,97093.0,97092.0,3.81850728]
[1736923375455,0.00085432,97093.0,97092.0,3.77727728]
[1736923376643,0.00085432,97093.0,97092.0,3.14011128]
[1736923376834,0.00085432,97093.0,97092.0,3.96137528]
[1736923377041,0.00085432,97093.0,97092.0,3.83470428]
[1736923385750,0.00179277,97096.0,97095.0,0.08501445]
[1736923385965,0.0018423,97096.0,97095.0,1.98053466]
[1736923386164,0.0018423,97096.0,97095.0,2.26263903]
[1736923386334,0.0018423,97096.0,97095.0,2.00013003]
[1736923386537,0.0018423,97096.0,97095.0,3.50013003]
[1736923386777,0.0018423,97096.0,97095.0,4.01295981]
[1736923387200,0.0018423,97096.0,97095.0,4.00384081]
[1736923387398,0.0018423,97096.0,97095.0,3.98721581]
[1736923387967,0.0018423,97096.0,97095.0,3.90220136]
[1736923388521,0.0018423,97096.0,97095.0,1.67693836]
[1736923388722,0.0018423,97096.0,97095.0,1.66571636]
[1736923390571,0.0018423,97096.0,97095.0,1.4341948]
[1736923390972,0.0018423,97096.0,97095.0,1.7592828]
[1736923392559,0.0018423,97096.0,97095.0,3.2592828]
[1736923393794,0.0018423,97096.0,97095.0,3.2589828]
[1736923395662,0.0018423,97096.0,97095.0,2.7144988]
[1736923395841,0.0018423,97096.0,97095.0,4.7241808]
[1736923396844,0.0018423,97096.0,97095.0,4.5091218]
[1736923397352,0.0018423,97096.0,97095.0,4.4884838]
[1736923398454,0.0018423,97096.0,97095.0,2.9884838]
[1736923399477,0.0018423,97096.0,97095.0,2.9647988]
[1736923400475,0.0018423,97096.0,97095.0,3.4787988]
[1736923401424,0.0018423,97096.0,97095.0,3.4845188]
[1736923405886,0.0018423,97096.0,97095.0,4.9845188]
[1736923406499,0.0018423,97096.0,97095.0,4.9591238]
[1736923408156,0.0018423,97096.0,97095.0,4.96091636]
[1736923414057,0.00179299,97097.0,97096.0,0.44099545]
[1736923414302,0.00179257,97109.0,97105.0,0.15]
[1736923414649,0.0018421,97109.0,97106.0,0.13745217]
[1736923414823,0.0018421,97109.0,97107.0,0.03219566]
[1736923415125,0.0018421,97109.0,97108.0,0.25525651]
[1736923415425,0.0018421,97109.0,97108.0,0.59535258]
[1736923415623,0.0018421,97109.0,97108.0,0.78091407]
[1736923415847,0.0018421,97109.0,97108.0,0.98687007]
[1736923416694,0.0018421,97109.0,97108.0,1.0916168]
[1736923416868,0.0018421,97109.0,97108.0,1.0973368]
[1736923417914,0.0018421,97109.0,97108.0,1.4230368]
[1736923418606,0.0018421,97109.0,97108.0,1.44399995]
[1736923418826,0.0018421,97109.0,97108.0,1.34461757]
[1736923418827,0.0802421,97109.0,97108.0,1.34461757]
[1736923419027,0.0802421,97109.0,97108.0,0.60980276]
[1736923419028,0.14222765,97109.0,97108.0,0.60980276]
[1736923419225,0.14222765,97109.0,97108.0,0.59923822]
[1736923419504,0.14222765,97109.0,97108.0,0.60223822]
[1736923420273,0.14222765,97109.0,97108.0,0.59923822]
[1736923420481,0.14222765,97109.0,97108.0,0.60123822]
[1736923420737,0.14222765,97109.0,97108.0,0.31093]
[1736923421183,0.14222765,97109.0,97108.0,0.31893]
[1736923422346,0.1272421,97109.0,97108.0,0.31693]
[1736923423367,0.14222765,97109.0,97108.0,0.30893]
[1736923423847,0.14222765,97109.0,97108.0,0.31093]
[1736923424266,0.14222765,97109.0,97108.0,0.30893]
[1736923424975,0.1272421,97109.0,97108.0,0.31093]
[1736923427196,0.1272421,97109.0,97108.0,0.30893]
[1736923427692,0.1272421,97109.0,97108.0,0.31093]
[1736923428073,0.1272421,97109.0,97108.0,0.30893]
[1736923428648,0.1272421,97109.0,97108.0,0.31093]
[1736923429171,0.1272421,97109.0,97108.0,0.30893]
[1736923430168,0.0488421,97109.0,97108.0,0.30893]
[1736923431299,0.0488421,97109.0,97108.0,0.31093]
[1736923431484,0.0488421,97109.0,97108.0,0.30893]
[1736923431861,0.0488421,97109.0,97108.0,0.31093]
[1736923432059,0.0488421,97109.0,97108.0,0.30893]
[1736923432460,0.0488421,97109.0,97108.0,0.31093]
[1736923432790,0.14162765,97109.0,97108.0,0.31093]
[1736923434003,0.14162765,97109.0,97108.0,0.30893]
[1736923434387,0.14162765,97109.0,97108.0,0.31093]
[1736923441176,0.14162765,97109.0,97108.0,0.30893]
[1736923442208,0.18582595,97109.0,97108.0,0.30893]
[1736923445959,0.14162765,97109.0,97108.0,0.30893]
[1736923448519,0.23424801,97109.0,97108.0,0.30893]
[1736923448714,0.23524801,97109.0,97108.0,0.30893]
[1736923449212,0.23624801,97109.0,97108.0,0.30893]
[1736923449559,0.23524801,97109.0,97108.0,0.30893]
[1736923450098,0.23624801,97109.0,97108.0,0.30893]
[1736923450476,0.34047493,97109.0,97108.0,0.30893]
[1736923451689,0.24785457,97109.0,97108.0,0.30893]
[1736923452955,0.34047493,97109.0,97108.0,0.30893]
[1736923453905,0.24785457,97109.0,97108.0,0.30893]
[1736923456723,0.24773062,97109.0,97108.0,0.30893]
[1736923461908,0.35195754,97109.0,97108.0,0.30893]
[1736923462896,0.69317443,97109.0,97108.0,0.30893]
[1736923463103,0.69117443,97109.0,97108.0,0.30893]
[1736923463462,0.69317443,97109.0,97108.0,0.30893]
[1736923466493,0.69317443,97109.0,97108.0,0.31072235]
[1736923467779,0.35992059,97109.0,97108.0,0.31072235]
[1736923468713,0.0187037,97109.0,97108.0,0.31072235]
[1736923469765,0.0177037,97109.0,97108.0,0.31072235]
[1736923470546,0.20133062,97109.0,97108.0,0.31072235]
[1736923470799,0.24703062,97109.0,97108.0,0.31072235]
[1736923470942,0.24903062,97109.0,97108.0,0.31072235]
[1736923471141,0.35325754,97109.0,97108.0,0.31072235]
[1736923471553,0.35125754,97109.0,97108.0,0.31072235]
[1736923472314,0.87753178,97109.0,97108.0,0.31072235]
[1736923472918,0.77330486,97109.0,97108.0,0.31072235]
[1736923473421,0.58836306,97109.0,97108.0,0.31072235]
[1736923473958,0.59036306,97109.0,97108.0,0.31072235]
[1736923475924,0.82191396,97109.0,97108.0,0.31072235]
[1736923477457,0.59036306,97109.0,97108.0,0.31072235]
[1736923490188,0.86822414,97109.0,97108.0,0.31072235]
[1736923491716,0.97245106,97109.0,97108.0,0.31072235]
[1736923492130,0.59036306,97109.0,97108.0,0.31072235]
[1736923499387,1.59036306,97109.0,97108.0,0.31072235]
[1736923499545,1.59036306,97109.0,97108.0,0.30072235]
[1736923501261,1.51096306,97109.0,97108.0,0.30072235]
[1736923501878,1.98928202,97109.0,97108.0,0.30072235]
[1736923502718,2.09350894,97109.0,97108.0,0.30072235]
[1736923503482,2.04780894,97109.0,97108.0,0.30072235]
[1736923505236,1.94358202,97109.0,97108.0,0.30072235]
[1736923507907,0.01498555,97098.0,97097.0,0.08329256]
[1736923509888,0.01498555,97098.0,97097.0,0.08429256]
[1736923510094,0.35731799,97098.0,97097.0,0.08429256]
[1736923510271,0.35731799,97098.0,97097.0,0.00279256]
[1736923512573,0.01598555,97098.0,97097.0,0.00279256]
[1736923515162,0.35791724,97098.0,97097.0,0.00279256]
[1736923518637,0.35791724,97098.0,97097.0,0.08479256]
[1736923518870,0.34293169,97098.0,97097.0,0.08479256]
[1736923519091,0.34293169,97098.0,97097.0,0.18901948]
[1736923519859,0.34293169,97098.0,97097.0,0.20953546]
[1736923520256,0.34193169,97098.0,97097.0,0.20953546]
[1736923520685,0.001,97098.0,97097.0,0.20953546]
[1736923521221,0.69927765,97100.0,97098.0,0.205977]
[1736923521425,0.69927765,97100.0,97099.0,0.18622692]
[1736923524911,0.7142632,97100.0,97099.0,0.082]
[1736923525077,0.01498555,97098.0,97097.0,0.00179256]
[1736923525911,0.11921247,97098.0,97097.0,0.00179256]
[1736923526478,0.11921247,97098.0,97097.0,0.00279256]
[1736923526663,0.11921247,97098.0,97097.0,0.00179256]
[1736923526866,0.01498555,97098.0,97097.0,0.00179256]
[1736923527091,0.01598555,97098.0,97097.0,0.00179256]
[1736923527289,0.01498555,97098.0,97097.0,0.00179256]
[1736923527494,0.01598555,97098.0,97097.0,0.00179256]
[1736923527896,0.001,97098.0,97097.0,0.00179256]
[1736923529546,0.002,97098.0,97097.0,0.00179256]
[1736923529745,0.001,97098.0,97097.0,0.00179256]
[1736923530275,0.69927765,97100.0,97098.0,0.205977]
[1736923532016,0.69927765,97100.0,97098.0,0.21645605]
[1736923534146,0.69927765,97100.0,97099.0,0.10422692]
[1736923535594,0.69927765,97100.0,97099.0,0.10522692]
[1736923536394,0.69927765,97100.0,97099.0,0.10422692]
[1736923537345,0.69927765,97100.0,97099.0,0.10622692]
[1736923538826,0.69927765,97100.0,97099.0,0.10422692]
[1736923539615,0.69927765,97100.0,97099.0,0.10622692]
[1736923540573,0.69927765,97100.0,97099.0,0.10422692]
[1736923543185,0.69927765,97100.0,97099.0,0.10622692]
[1736923543590,0.69927765,97100.0,97099.0,0.10422692]
[1736923544077,0.69927765,97100.0,97099.0,0.10822692]
[1736923544480,0.69927765,97100.0,97099.0,0.10922692]
[1736923546674,0.69927765,97100.0,97099.0,0.005]
[1736923552760,0.69927765,97100.0,97099.0,0.10922692]
[1736923553065,0.69927765,97100.0,97099.0,0.41549975]
[1736923553217,0.69927765,97100.0,97099.0,0.84119975]
[1736923553425,0.69556136,97100.0,97099.0,1.41377175]
[1736923553623,0.40846477,97100.0,97099.0,1.5217862]
[1736923553823,0.01498555,97145.0,97117.0,0.08501445]
[1736923554034,0.07703975,97133.0,97122.0,0.2273]
[1736923554237,0.07703975,97133.0,97131.0,0.15]
[1736923554436,0.07703975,97133.0,97132.0,0.46013192]
[1736923554951,0.07703975,97133.0,97132.0,0.91790892]
[1736923555363,0.27800171,97149.0,97132.0,0.91790892]
[1736923555364,0.0817,97157.0,97147.0,0.205873]
[1736923555530,0.00228833,97148.0,97147.0,0.205873]
[1736923557760,0.00228833,97148.0,97147.0,0.207873]
[1736923558425,0.00228833,97148.0,97147.0,0.205873]
[1736923558908,0.00228833,97148.0,97147.0,0.206873]
[1736923559108,0.00228833,97148.0,97147.0,0.205873]
[1736923559268,0.00228833,97148.0,97147.0,0.87461477]
[1736923559469,0.00228833,97148.0,97147.0,0.87358549]
[1736923560268,0.00228833,97148.0,97147.0,0.87458549]
[1736923560667,0.00228833,97148.0,97147.0,0.87358549]
[1736923561142,0.00228833,97148.0,97147.0,0.87558549]
[1736923561348,0.00228833,97148.0,97147.0,0.88058549]
[1736923561910,0.00228833,97148.0,97147.0,0.87558549]
[1736923562109,0.00228833,97148.0,97147.0,0.88258549]
[1736923563800,0.00228833,97148.0,97147.0,1.19139549]
[1736923574846,0.00228833,97148.0,97147.0,1.11985549]
[1736923575047,0.00228833,97148.0,97147.0,1.11409549]
[1736923575436,0.00228833,97148.0,97147.0,1.11985549]
[1736923577079,0.00228833,97148.0,97147.0,1.11409549]
[1736923577544,0.00228833,97148.0,97147.0,0.86558857]
[1736923578011,0.09997388,97148.0,97147.0,0.65971557]
[1736923578186,0.09997388,97148.0,97147.0,0.65771557]
[1736923578740,0.09997388,97148.0,97147.0,0.65171557]
[1736923578997,0.08498833,97148.0,97147.0,0.65171557]
[1736923579126,0.00228833,97148.0,97147.0,0.75594249]
[1736923579557,0.00228833,97148.0,97147.0,0.75894249]
[1736923580239,0.00228833,97148.0,97147.0,0.75794249]
[1736923580695,0.00228833,97148.0,97147.0,0.65371557]
[1736923581281,0.00228833,97148.0,97147.0,0.65471557]
[1736923581656,0.00228833,97148.0,97147.0,0.65171557]
[1736923581896,0.00228833,97148.0,97147.0,0.65071557]
[1736923582097,0.00228833,97148.0,97147.0,0.65571557]
[1736923582543,0.00228833,97148.0,97147.0,0.32501557]
[1736923583087,0.00228833,97148.0,97147.0,0.32801557]
[1736923583289,0.00216442,97148.0,97147.0,0.32501557]
[1736923583624,0.00216442,97148.0,97147.0,0.32229557]
[1736923583833,0.01714997,97148.0,97147.0,0.32801557]
[1736923584485,0.00216442,97148.0,97147.0,0.32801557]
[1736923584698,0.00216442,97148.0,97147.0,0.32901557]
[1736923585078,0.00216442,97148.0,97147.0,0.32601557]
[1736923585287,0.00216442,97148.0,97147.0,0.32501557]
[1736923585480,0.00216442,97148.0,97147.0,0.33001557]
[1736923587685,0.00216442,97148.0,97147.0,0.43524249]
[1736923587897,0.00216442,97148.0,97147.0,0.58524249]
[1736923588484,0.00216442,97148.0,97147.0,0.94208886]
[1736923588749,0.00216442,97148.0,97147.0,0.93708886]
[1736923589153,0.00216442,97148.0,97147.0,0.94308886]
[1736923589611,0.00216442,97148.0,97147.0,1.02268886]
[1736923590359,0.00216442,97148.0,97147.0,0.94308886]
[1736923590537,0.00216442,97148.0,97147.0,0.93708886]
[1736923590736,0.00216442,97148.0,97147.0,0.93236886]
[1736923591085,0.00216442,97148.0,97147.0,0.93808886]
[1736923591216,0.00216442,97148.0,97147.0,0.93236886]
[1736923591557,0.00216442,97148.0,97147.0,0.93808886]
[1736923591757,0.00216442,97148.0,97147.0,0.93708886]
[1736923592360,0.00216442,97148.0,97147.0,0.94508886]
[1736923592722,0.00216442,97148.0,97147.0,0.93908886]
[1736923593324,0.00216442,97148.0,97147.0,0.94608886]
[1736923594129,0.00216442,97148.0,97147.0,0.94788079]
[1736923596704,0.00216442,97148.0,97147.0,1.02368079]
[1736923596898,0.00216442,97148.0,97147.0,2.52368079]
[1736923597316,0.00216442,97148.0,97147.0,1.02368079]
[1736923603479,0.00216442,97148.0,97147.0,0.99153442]
[1736923605031,0.00216442,97148.0,97147.0,1.02368618]
[1736923605589,0.00216442,97148.0,97147.0,0.99153442]
[1736923605796,0.00216442,97148.0,97147.0,1.08400127]
[1736923606666,0.00216442,97148.0,97147.0,1.11615293]
[1736923608228,0.00216442,97148.0,97147.0,0.94788608]
[1736923610682,0.00216442,97148.0,97147.0,0.94216608]
[1736923610983,0.00216442,97148.0,97147.0,0.94788608]
[1736923612001,0.00216442,97148.0,97147.0,1.04049636]
[1736923613221,0.00216442,97148.0,97147.0,1.03349636]
[1736923613404,0.00216442,97148.0,97147.0,1.03149636]
[1736923614043,0.00216442,97148.0,97147.0,1.03249636]
[1736923614215,0.00216442,97148.0,97147.0,1.03749636]
[1736923614420,0.00216442,97148.0,97147.0,1.03149636]
[1736923614631,0.00216442,97148.0,97147.0,1.03249636]
[1736923614809,0.00216442,97148.0,97147.0,1.03749636]
[1736923616202,0.13056442,97148.0,97147.0,0.74539778]
[1736923616402,0.13056442,97148.0,97147.0,0.75111778]
[1736923616403,0.14554997,97148.0,97147.0,0.75111778]
[1736923616532,0.14554997,97148.0,97147.0,0.74539778]
[1736923617088,0.14554997,97148.0,97147.0,0.40421221]
[1736923617461,0.14554997,97148.0,97147.0,0.31760193]
[1736923617861,0.14554997,97148.0,97147.0,0.31660193]
[1736923618078,0.14554997,97148.0,97147.0,0.31760193]
[1736923618243,0.14554997,97148.0,97147.0,0.31160193]